Cogmind - Beta 16 @@@ ROGUE MODE // 2025.12.10 @ 12:51:27 Player: Mozco Result: Destroyed by D-53 Grenadier with Mini Grenade Launcher Performance ------------- Evolutions (0) 0 Regions Visited (2) 400 Robots Destroyed (21) 105 Value Destroyed (395) 395 Prototype IDs (0) 0 Alien Tech Used (0) 0 Bonus (0) 0 TOTAL SCORE: 900 Bonus ------- None Cogmind --------- Core Integrity 0/250 Matter 292/300 Energy 100/100 System Corruption 0% Temperature Cool (0) Movement Walking (190) Ox1 Location -10/Mines Parts ------- > --- POWER (1) -------- (None) > --- PROPULSION (2) --- Aluminum Leg Wheel > --- UTILITY (2) ------ Small Storage Unit Medium Storage Unit > --- WEAPON (2) ------- Small Laser Light Assault Rifle > --- INVENTORY (10) --- Improved Heat Sink Medium Storage Unit Machine Analyzer Grenade Launcher Mini Grenade Launcher Datajack Peak State ------------ > --- POWER ------------ (None) > --- PROPULSION ------- Light Treads > --- UTILITY ---------- Small Storage Unit Medium Storage Unit > --- WEAPON ----------- Light Assault Rifle Mini Grenade Launcher > --- INVENTORY -------- Wheel Machine Analyzer Small Laser Assault Rifle Light Assault Rifle Grenade Launcher Mini Grenade Launcher Datajack [Rating: 7] Favorites ----------- Power Light Ion Engine Engine Light Ion Engine Propulsion Light Treads Treads Light Treads Leg Aluminum Leg Wheel Wheel Utility Small Storage Unit Storage Small Storage Unit Weapon Assault Rifle Energy Gun Small Laser Ballistic Gun Assault Rifle Launcher Mini Grenade Launcher Build | -11 -10 -10 ------- Run | Yrd Mat Min Slots Evolved . | . . . Power . | . . . Propulsion . | . . . Utility . | . . . Weapon . | . . . Parts Attached 15 | 6 2 7 Power 1 | 1 . . Engine 1 | 1 . . Core . | . . . Reactor . | . . . Propulsion 4 | 2 . 2 Treads 2 | 2 . . Leg 1 | . . 1 Wheel 1 | . . 1 Hover . | . . . Flight . | . . . Utility 3 | 1 1 1 Device . | . . . Storage 3 | 1 1 1 Processor . | . . . Hackware . | . . . Protection . | . . . Artifact . | . . . Weapon 7 | 2 1 4 Energy Gun 1 | . . 1 Energy Cannon . | . . . Ballistic Gun 3 | 2 . 1 Ballistic Cannon . | . . . Launcher 3 | . 1 2 Special Weapon . | . . . Impact Weapon . | . . . Slashing Weapon . | . . . Piercing Weapon . | . . . Special Melee Weapon . | . . . Unidentified Prototypes . | . . . Parts Lost 6 | . 2 4 Power 1 | . 1 . Propulsion 2 | . 1 1 Utility . | . . . Weapon 3 | . . 3 Highest Loss Streak 3 | . 1 3 To Critical Strikes . | . . . Average Backups 5 | . 5 6 Power . | . . . Propulsion . | . . . Utility . | . . 1 Weapon 3 | . 3 3 Tool/Special . | . . . Unused Backups 2 | . . 2 Power . | . . . Propulsion . | . . . Utility 1 | . . 1 Weapon . | . . . Tool/Special 1 | . . 1 Average Slot Usage (%) 76 | . 74 82 Engine 4 | . 5 . Treads 18 | . 20 11 Wheel 3 | . . 12 Storage 21 | . 19 28 Ballistic Gun 27 | . 28 25 Peak Build Rating 7 | 6 6 7 Average Rating 5 | 4 5 6 On Entrance 4 | . 6 6 Avg Prop Armor Cover (%) 13 | . . 13 Naked Turns . | . . . Heaviest Build 18 | 11 18 18 Greatest Support 40 | 40 40 20 Greatest Overweight (x) 1 | . . 1 Average Overweight (x) . | . . . Largest Inventory Capacity 10 | 8 10 10 Average Capacity 9 | 7 8 10 Most Carried 8 | 1 8 8 Average Carried 5 | . 5 6 Final Capacity 10 | 8 10 10 Final Carried 8 | 1 8 6 Class Distribution -------------------- 100% | Mutant Dominant Class ---------------- Mutant | -10/Materials Mutant | -10/Mines Resources | -11 -10 -10 ----------- Run | Yrd Mat Min Matter Collected 703 | 200 347 156 Remotely . | . . . Salvage Created 741 | . 598 143 Parts 39 | . 33 6 Haulers Intercepted 2 | . 2 . Recyclers Shooed . | . . . Parts Field Recycled . | . . . Retrieved Matter . | . . . Parts Self-Destructed . | . . . Prevented . | . . . Parts Restored . | . . . Kills | -11 -10 -10 ------- Run | Yrd Mat Min Combat Hostiles Destroyed 33 | . 13 20 Guns 14 | . 11 3 AOE 19 | . 2 17 Classes Destroyed 8 | . 7 1 Worker 1 | . 1 . Hauler 2 | . 2 . Recycler 1 | . 1 . Mechanic 1 | . 1 . Operator 1 | . 1 . Swarmer 7 | . 7 . Grunt 8 | . 6 2 Assembled 18 | . . 18 Best Kill Streak 18 | . 3 18 Combat Bots Only 18 | . 3 18 Max Kills in Single Turn 5 | . 2 5 Gunslinging 1 | . 1 . Exploded 5 | . 2 5 Melee . | . . . Uniques/NPCs Destroyed . | . . . Combat | -11 -10 -10 -------- Run | Yrd Mat Min Hostile Shots Fired 130 | . 87 43 Missed 34 | . 20 14 Hits 96 | . 67 29 Melee 2 | . . 2 Projectile 94 | . 67 27 AOE 1 | . . 1 Damage Taken 1085 | . 594 491 Core 250 | . 122 128 Absorbed by Shields . | . . . Regen/Repaired (Parts) 124 | . 124 . Core Remaining (%) 100 | 100 . . Volleys Fired 81 | . 64 17 Largest 2 | . 2 2 Hottest 60 | . 40 60 Shots Fired 155 | . 127 28 Gun 149 | . 126 23 Cannon . | . . . Launcher 6 | . 1 5 Special . | . . . Kinetic 142 | . 126 16 Thermal 7 | . . 7 Explosive 6 | . 1 5 Electromagnetic . | . . . Robot Hit Streak 15 | . 7 15 Robot Miss Streak 5 | . 5 2 Penetration Max . | . . . Secondary Targets 2 | . 2 . Max Gunslinging Chain 1 | . 1 . Shots Hit Robots 96 | . 73 23 Core Hits 72 | . 28 44 Critical Kills . | . . . Critical Parts Destroyed . | . . . Critical Strikes . | . . . Melee Attacks . | . . . Impact . | . . . Slashing . | . . . Piercing . | . . . Sneak Attacks . | . . . Combat Hostiles . | . . . Follow-up Attacks . | . . . Damage Inflicted 2329 | . 818 1511 Guns 961 | . 751 210 Cannons . | . . . Explosions 1368 | . 67 1301 Melee . | . . . Ramming . | . . . Kinetic 901 | . 751 150 Thermal 60 | . . 60 Explosive 1368 | . 67 1301 Electromagnetic . | . . . Impact . | . . . Slashing . | . . . Piercing . | . . . Highest Corruption . | . . . Average Corruption . | . . . Corruption Purged . | . . . Corruption Blocked . | . . . Overload Shots . | . . . Overflow Damage 28 | . . 28 Projectiles . | . . . Explosions 28 | . . 28 Melee . | . . . Knockbacks . | . . . Impact . | . . . Kinetic . | . . . Secondary . | . . . Self-Inflicted Damage 73 | . . 73 Shots 5 | . . 5 Rammed . | . . . Targets Rammed . | . . . Kicked . | . . . Crushed . | . . . Highest Temperature 12 | . 12 10 Average Temperature 5 | . 5 4 Received Heat Transfer 257 | . 150 107 Siege Activations . | . . . Martial Activations . | . . . Shielding Activations . | . . . Robots Disrupted . | . . . Combat Hostiles . | . . . Robots Corrupted . | . . . Combat Hostiles . | . . . Parts Fried . | . . . Impact Corruptions . | . . . Robots Melted . | . . . Combat Hostiles . | . . . Parts Melted . | . . . Heat Transferred 125 | . . 125 Parts Sabotaged . | . . . Parts Stolen . | . . . Parts Stripped . | . . . Power Chain Reactions . | . . . Alert | -11 -10 -10 ------- Run | Yrd Mat Min Maximum Alert Level 1 | . 1 . Low Security (%) 98 | 100 98 100 Level 1 1 | . 1 . Level 2 . | . . . Level 3 . | . . . Level 4 . | . . . Level 5 . | . . . High Security . | . . . Max Security . | . . . Peak Influence 204 | . 204 71 Initial 55 | . . 55 Average 83 | . 112 21 Influence Increases 575 | . 483 92 Destroy 0b10 Robot/C 300 | . 260 40 Destroy 0b10 Robot/NC 30 | . 30 . Destroy Leader 74 | . 64 10 Successful Hack 28 | . 28 . Select Force Hacks 60 | . 60 . Destroy Structure 38 | . 11 27 Lose Combat Pursuer 45 | . 30 15 Influence Decreases 540 | . 339 201 Entered New Map 89 | . . 89 Time Decay 411 | . 319 92 Lost Part 40 | . 20 20 Squads Dispatched 5 | . 5 . Investigation 4 | . 4 . Extermination . | . . . Reinforcement 1 | . 1 . Assault . | . . . Garrison . | . . . Intercept . | . . . Searches Triggered . | . . . Construction Impeded . | . . . Haulers Reinforced . | . . . Active Scanning Responses . | . . . Cargo Convoy Interrupts . | . . . Stealth | -11 -10 -10 --------- Run | Yrd Mat Min Distress Signals 2 | . 1 1 Communications Jammed . | . . . Distress Signals . | . . . Times Spotted 44 | . 22 22 Peak Tracking Total 17 | . 4 17 Tactical Retreats 2 | . 1 1 Traps | -11 -10 -10 ------- Run | Yrd Mat Min Traps Triggered 2 | . 2 . Indirectly . | . . . Trap Hack Attempts . | . . . Triggered . | . . . Disarmed . | . . . Reprogrammed . | . . . Reused . | . . . Traps Extracted . | . . . Installed . | . . . Triggered . | . . . Machines | -11 -10 -10 ---------- Run | Yrd Mat Min Machines Disabled . | . . . Max in Single Turn . | . . . Machines Repaired . | . . . Machines Dismantled . | . . . Machines Sabotaged . | . . . Overloaded Fab Kills . | . . . Hacking | -11 -10 -10 --------- Run | Yrd Mat Min Machines Accessed 9 | . 8 1 Terminals 6 | . 5 1 Fabricators . | . . . Repair Stations 1 | . 1 . Recycling Units 2 | . 2 . Scanalyzers . | . . . Garrison Access . | . . . Total Hacks 26 | . 20 6 Successful 15 | . 11 4 Failed 10 | . 8 2 Catastrophic 1 | . . 1 Database Lockouts 1 | . 1 . Manual 19 | . 13 6 Terminals 22 | . 16 6 Fabricators . | . . . Repair Stations 2 | . 2 . Recycling Units 2 | . 2 . Scanalyzers . | . . . Garrison Access . | . . . Terminal Hacks 6 | . 3 3 Part Schematic 2 | . . 2 Robot Analysis 3 | . 2 1 Zone Layout 1 | . 1 . Fabricator Hacks . | . . . Repair Station Hacks 2 | . 2 . Scan Component 1 | . 1 . Repair 1 | . 1 . Recycling Unit Hacks . | . . . Scanalyzer . | . . . Garrison Access Hacks . | . . . Unauthorized Hacks 7 | . 6 1 Terminals 5 | . 4 1 Botnet 5 | . 4 1 Fabricators . | . . . Repair Stations . | . . . Recycling Units 2 | . 2 . Tunnel 2 | . 2 . Scanalyzers . | . . . Garrison Access . | . . . Data Cores Recovered . | . . . Used . | . . . Hacking Detections 7 | . 6 1 Full Trace Events 1 | . 1 . Feedback Events . | . . . Feedback Blocked . | . . . Robot Schematics Acquired . | . . . Robots Built . | . . . Authchips . | . . . Time . | . . . Total Robot Build Rating . | . . . Part Schematics Acquired 2 | . . 2 Parts Built . | . . . Authchips . | . . . Time . | . . . Total Part Build Rating . | . . . Part Studies Acquired . | . . . Parts Repaired 1 | . 1 . Time 26 | . 26 . Parts Recycled . | . . . Recycled Matter . | . . . Retrieved Matter . | . . . Retrieved Components . | . . . Parts Scanalyzed . | . . . Part Schematics Acquired . | . . . Parts Damaged . | . . . Bothacking | -11 -10 -10 ------------ Run | Yrd Mat Min Used RIF Installer . | . . . Robots Hacked . | . . . Non-combat . | . . . Combat . | . . . Robot Hacks Applied . | . . . Relay Couplers Released . | . . . Fabnet Peak Effective % . | . . . Robots Rewired . | . . . Allies Hacked . | . . . Hacks Repelled . | . . . Allies | -11 -10 -10 -------- Run | Yrd Mat Min Total Allies . | . . . Largest Group . | . . . Highest-Rated Group . | . . . Highest-Rated Ally . | . . . Total Orders . | . . . Ally Attacks . | . . . Total Damage . | . . . Kills . | . . . Allies Corrupted . | . . . Allies Melted . | . . . Intel | -11 -10 -10 ------- Run | Yrd Mat Min Active Infowar (turns) . | . . . Robot Analysis Total 3 | . 2 1 Derelict Logs Recovered . | . . . Drone Launches . | . . . Drone Recoveries . | . . . Exploration | -11 -10 -10 ------------- Run | Yrd Mat Min Turns Passed 1251 | 79 869 303 Spaces Moved 606 | 47 406 153 Core 5 | 5 . . Treads 454 | 42 406 6 Legs 4 | . . 4 Wheels 143 | . . 143 Hover . | . . . Flight . | . . . Fastest Speed 50 | 50 160 95 Average Speed 143 | 148 160 100 Slowest Speed 190 | 160 160 190 Overloaded Moves . | . . . Propulsion Burnouts . | . . . Robots Hopped . | . . . Potential Cave-ins . | . . . Cave-ins Triggered . | . . . Exploration Rate (%) 35 | 4 74 28 Regions Visited 2 Branch Regions 1 Pre-discovered Areas 2 | . 2 . Known Exits Taken . | . . . Unknown Exits Taken 2 | 1 1 . Scrap Searched 1 | . . 1 Spaces Dug . | . . . Terrain Destroyed 40 | . 10 30 Melee . | . . . Projectile . | . . . AOE 40 | . 10 30 Terrain Rammed . | . . . Walls Destroyed . | . . . Machines Disabled . | . . . Actions | -11 -10 -10 --------- Run | Yrd Mat Min Total 836 | 53 509 274 Wait 123 | . 28 95 Move 604 | 46 405 153 Hop . | . . . Pick Up 9 | 1 7 1 Fast Attach 9 | 6 2 1 Attach 4 | . . 4 Detach . | . . . Swap 6 | . 3 3 Drop . | . . . Fire 81 | . 64 17 Melee . | . . . Ram . | . . . Kick . | . . . Crush . | . . . Escape Stasis . | . . . Rewire . | . . . Trap . | . . . Miscellaneous . | . . . Route ------- -11/Scrapyard -10/Materials (discovered 4 exits: [*Mat x2] / *Min x2) -10/Mines History --------- Turn | Location | Event 3 | -11/Scrapyard | Discovered new exit (range 16) 80 | -11/Scrapyard | Entered Materials 137 | -10/Materials | Discovered new exit (range 16) 317 | -10/Materials | Build established: Mutant 345 | -10/Materials | Discovered new exit (range 3) 731 | -10/Materials | Central database locked down 770 | -10/Materials | Repaired Lgt. Treads 792 | -10/Materials | Discovered new exit (range 3) 935 | -10/Materials | Discovered new exit (range 7) 949 | -10/Materials | Entered Mines 950 | -10/Mines | Assembled infested the area 963 | -10/Mines | Core integrity fell below 50% 994 | -10/Mines | Destroyed 18 combat bots 1064 | -10/Mines | Met a Derelict bent on vengeance 1206 | -10/Mines | Core integrity fell below 20% 1252 | -10/Mines | Destroyed by D-53 Grenadier with Mini Grenade Launcher Last Messages --------------- Downloading schematic... Huge Storage Unit Rating: 1 Schematic downloaded. >>Schematic(Lgt. Treads) Downloading schematic... Lgt. Treads Rating: 1 Schematic downloaded. 01207_ Lgt. Treads destroyed. 01213_ Lgt. Assault Rifle destroyed. 01220_ G-47 Trooper destroyed. 01221_ R-06 Scavenger collects Lgt. Nuclear Core. 01224_ Acquired Imp. Heat Sink. 01226_ Acquired Aluminum Leg. 01230_ R-06 Scavenger sends out distress signal. 01232_ Acquired 57 matter. 01242_ Assault Rifle destroyed. 01246_ G-34 Mercenary destroyed. 01249_ Acquired 49 matter. Map ----- +----------------------------------------------------+ | ?????????????????????????????????? | | ?????????????????????????????????? | | ?????????????????????????????????? | | ????????????####?????????????????? | | ???????????## #????????????????? | | ???????????# #?????????#####?? | | ?????###???# ##?####### ### | | ??####T###### ### | | ??# #??# | | ??# #??## ## | | ??# """ #???## ### | | ??# """ ####### ###?# | | ??# """ =%## ##???# | | ??# ##### #### ######????# | | ??####### ######!#### #?????????# | | ?????#### #?????????# | | ????## ##############?????????? | | ???## #??????????????????????? | | ??## #??????????????????????? | | ??# ##??????????????????????? | | ??# ###???????????????????????? | | ??## ##?????????????????????????? | | ???## #??????????????????????????? | | ????# #####??????????????????????? | | ????# = [#??????????????????????? | | ????#####@#??????????????????????? | | ????????# #??????????????????????? | | ????????# #??????????????????????? | | ????????#d#??????????????????????? | | ????????# ??????????????????????? | | ????????## ??????????????????????? | | ?????????? ??????????????????????? | | ?????????? ??????????????????????? | | ?????????? ??????????????????????? | | ?????????? ??????????????????????? | | ?????????? ?????????????????????? | | ?????????? #?????????????????????? | | ???????????#?????????????????????? | | ?????????????????????????????????? | | ?????????????????????????????????? | | ?????????????????????????????????? | | ?????????????????????????????????? | | ?????????????????????????????????? | | ?????????????????????????????????? | | ?????????????????????????????????? | | ?????????????????????????????????? | | ?????????????????????????????????? | | ?????????????????????????????????? | | ?????????????????????????????????? | | ?????????????????????????????????? | +----------------------------------------------------+ Best States ------------- Heat Dissipation 25 Energy Generation 10 Energy Capacity 125 Matter Stores 300 Matter Capacity 300 Sight Range 16 Terrain Scan Density 10 Evasion (%) 41 Recoil Reduction 2 Item Schematics ----------------- Huge Storage Unit | -10/Mines | Hacked Lgt. Treads | -10/Mines | Hacked Robot Schematics ------------------ None Fabricated ------------ Nothing Repaired ---------- Lgt. Treads | 11% | -10/Materials Studied --------- None Alien Tech Used ----------------- None Achievements -------------- None Challenges ------------ None Game ------ Seed DecoyCooledSlayer Manual? 0 Play Time 00:10:09 Cumulative 409.5 hours Start 2025.12.10 @ 12:41:26 End 2025.12.10 @ 12:51:27 Sessions 1 Manual Loads 0 Difficulty Rogue Special Mode None Game No. 407 Rogue 403 Adventurer 3 Explorer 1 Win Type - Total 5 Types 4/0/1/0/0/0/0/0/0/0 Lore% 86 Gallery% 80 Achievement% 69 Wizard Run 0 Options --------- Layout 0 ASCII 0 Keyboard 0 Movement Numpad Keybinds 0 Fullscreen 2 Font 18/SmallcapsGlow Map View 76x50 Zoom Use 0% Tactical HUD 1 Map Filters NONE Filters NONE Steam 1 RUN: d6d98f5f-2100-46d2-a18c-07fc12a5b797